[Event "*** SCC Grand Prix: Titled Tuesday Blitz"]
[Site "Chess.com"]
[Date "2020.09.08"]
[Round "3"]
[White "Lion-Al-Messi"]
[Black "Mikheev1976"]
[Result "0-1"]
[WhiteElo "2555"]
[BlackElo "2386"]
[TimeControl "180+1"]
[EndTime "10:29:41 PDT"]
[Termination "Mikheev1976 won by resignation"]

1. e4 {[%clk 0:03:00.9]} 1... e5 {[%clk 0:02:59.1]} 2. Nf3 {[%clk 0:03:00.8]}
2... Nf6 {[%clk 0:02:59.6]} 3. Nxe5 {[%clk 0:03:00.3]} 3... d6 {[%clk
0:02:59.6]} 4. Nf3 {[%clk 0:03:00.6]} 4... Nxe4 {[%clk 0:03:00.1]} 5. d4 {[%clk
0:03:01.3]} 5... d5 {[%clk 0:03:00.2]} 6. Bd3 {[%clk 0:03:01.8]} 6... Nc6 {[%clk
0:03:00.5]} 7. O-O {[%clk 0:03:01.6]} 7... Be7 {[%clk 0:03:00.9]} 8. c4 {[%clk
0:03:00.7]} 8... Nb4 {[%clk 0:03:01.1]} 9. Be2 {[%clk 0:02:53.9]} 9... O-O
{[%clk 0:03:00.9]} 10. Nc3 {[%clk 0:02:53.8]} 10... Bf5 {[%clk 0:02:56.9]} 11.
Bf4 {[%clk 0:02:48.3]} 11... dxc4 {[%clk 0:02:39]} 12. Bxc4 {[%clk 0:02:42.4]}
12... Nd6 {[%clk 0:02:38.3]} 13. Bb3 {[%clk 0:02:41]} 13... Nd3 {[%clk 0:02:36]}
14. Qd2 {[%clk 0:02:39.1]} 14... Nxf4 {[%clk 0:02:34.7]} 15. Qxf4 {[%clk
0:02:40]} 15... c6 {[%clk 0:02:17.5]} 16. Rfe1 {[%clk 0:02:35.8]} 16... Re8
{[%clk 0:02:10.6]} 17. h3 {[%clk 0:02:33.9]} 17... h6 {[%clk 0:02:09.8]} 18. Ne5
{[%clk 0:02:33.7]} 18... Bg5 {[%clk 0:02:03.5]} 19. Qf3 {[%clk 0:02:31.1]} 19...
Be6 {[%clk 0:01:57.2]} 20. Ne4 {[%clk 0:02:19.7]} 20... Nxe4 {[%clk 0:01:52.7]}
21. Bxe6 {[%clk 0:02:13.4]} 21... fxe6 {[%clk 0:01:06.3]} 22. Qf7+ {[%clk
0:02:12.5]} 22... Kh8 {[%clk 0:01:06]} 23. Rxe4 {[%clk 0:02:09.1]} 23... Qf6
{[%clk 0:01:03.9]} 24. Rae1 {[%clk 0:02:00.4]} 24... Kh7 {[%clk 0:00:39.9]} 25.
f4 {[%clk 0:01:42.3]} 25... Qxf7 {[%clk 0:00:36.9]} 26. Nxf7 {[%clk 0:01:43.2]}
26... Bf6 {[%clk 0:00:37.4]} 27. f5 {[%clk 0:01:32.1]} 27... Re7 {[%clk
0:00:32.2]} 28. fxe6 {[%clk 0:01:32]} 28... Rae8 {[%clk 0:00:23.2]} 29. Nd6
{[%clk 0:01:31.6]} 29... Rd8 {[%clk 0:00:23]} 30. Nf5 {[%clk 0:01:31.3]} 30...
Ree8 {[%clk 0:00:22.9]} 31. b3 {[%clk 0:01:28.8]} 31... Rd5 {[%clk 0:00:23]} 32.
Rf1 {[%clk 0:00:58.2]} 32... g6 {[%clk 0:00:20.6]} 33. Ng3 {[%clk 0:00:58.4]}
33... Bxd4+ {[%clk 0:00:20.2]} 34. Kh2 {[%clk 0:00:57]} 34... Be5 {[%clk
0:00:19.4]} 35. Rf7+ {[%clk 0:00:54.7]} 35... Kg8 {[%clk 0:00:19.3]} 36. Rxb7
{[%clk 0:00:44.2]} 36... Rxe6 {[%clk 0:00:19.4]} 37. Rg4 {[%clk 0:00:37.4]}
37... h5 {[%clk 0:00:17.9]} 38. Ra4 {[%clk 0:00:17.5]} 38... Rd3 {[%clk
0:00:17.2]} 39. h4 {[%clk 0:00:10.1]} 39... Bxg3+ {[%clk 0:00:16.6]} 40. Kh3
{[%clk 0:00:10.2]} 40... Re1 {[%clk 0:00:15.5]} 0-1

[Event "*** SCC Grand Prix: Titled Tuesday Blitz"]
[Site "Chess.com"]
[Date "2020.09.08"]
[Round "3"]
[White "Sethu0025"]
[Black "GelmanAlexander"]
[Result "1-0"]
[WhiteElo "2712"]
[BlackElo "2508"]
[TimeControl "180+1"]
[EndTime "10:29:42 PDT"]
[Termination "Sethu0025 won on time"]

1. c4 {[%clk 0:03:00.9]} 1... c5 {[%clk 0:02:58.6]} 2. Nf3 {[%clk 0:02:59.8]}
2... Nf6 {[%clk 0:02:59.2]} 3. Nc3 {[%clk 0:03:00.1]} 3... e6 {[%clk 0:02:58.3]}
4. e3 {[%clk 0:02:57.9]} 4... d6 {[%clk 0:02:57.8]} 5. d4 {[%clk 0:02:57.7]}
5... Nbd7 {[%clk 0:02:58.1]} 6. Be2 {[%clk 0:02:53.7]} 6... b6 {[%clk
0:02:58.4]} 7. O-O {[%clk 0:02:54]} 7... Bb7 {[%clk 0:02:58.9]} 8. b3 {[%clk
0:02:53.4]} 8... a6 {[%clk 0:02:56.5]} 9. Bb2 {[%clk 0:02:53.9]} 9... Rg8 {[%clk
0:02:56.6]} 10. d5 {[%clk 0:02:45.9]} 10... g5 {[%clk 0:02:56.6]} 11. Nd2 {[%clk
0:02:15.3]} 11... Qe7 {[%clk 0:02:48.8]} 12. a3 {[%clk 0:02:09.8]} 12... g4
{[%clk 0:02:46.2]} 13. b4 {[%clk 0:02:08.6]} 13... h5 {[%clk 0:02:43.4]} 14. Re1
{[%clk 0:02:06.8]} 14... h4 {[%clk 0:02:40]} 15. g3 {[%clk 0:01:55]} 15... exd5
{[%clk 0:01:52.4]} 16. cxd5 {[%clk 0:01:54.6]} 16... Nxd5 {[%clk 0:01:52.5]} 17.
Nxd5 {[%clk 0:01:54.7]} 17... Bxd5 {[%clk 0:01:53.4]} 18. e4 {[%clk 0:01:55.2]}
18... Bb7 {[%clk 0:01:50.4]} 19. Nc4 {[%clk 0:01:45.9]} 19... O-O-O {[%clk
0:01:43.4]} 20. Bxg4 {[%clk 0:01:44.2]} 20... Kc7 {[%clk 0:01:37]} 21. Rc1
{[%clk 0:01:37.1]} 21... hxg3 {[%clk 0:01:24.9]} 22. hxg3 {[%clk 0:01:36.8]}
22... Nf6 {[%clk 0:01:22.6]} 23. Bf3 {[%clk 0:01:32.8]} 23... Bh6 {[%clk
0:01:16.6]} 24. Rc2 {[%clk 0:01:20.5]} 24... Bf4 {[%clk 0:01:13.5]} 25. Bg2
{[%clk 0:01:17.1]} 25... Bxg3 {[%clk 0:01:04.4]} 26. fxg3 {[%clk 0:01:17.2]}
26... Rxg3 {[%clk 0:01:05.3]} 27. Re3 {[%clk 0:00:59.3]} 27... Rg5 {[%clk
0:00:58.3]} 28. bxc5 {[%clk 0:00:44.7]} 28... dxc5 {[%clk 0:00:50.7]} 29. Qf3
{[%clk 0:00:43.5]} 29... Nh5 {[%clk 0:00:32.1]} 30. Rf2 {[%clk 0:00:20]} 30...
Kb8 {[%clk 0:00:22.4]} 31. Qxf7 {[%clk 0:00:18.3]} 31... Rd1+ {[%clk 0:00:20.1]}
32. Kh2 {[%clk 0:00:17.7]} 32... Rxg2+ {[%clk 0:00:17.3]} 33. Kxg2 {[%clk
0:00:16.2]} 33... Qg5+ {[%clk 0:00:17.2]} 34. Kf3 {[%clk 0:00:16]} 34... Qg3+
{[%clk 0:00:09.9]} 35. Ke2 {[%clk 0:00:15.6]} 35... Qg4+ {[%clk 0:00:08.5]} 36.
Qf3 {[%clk 0:00:14.7]} 36... Qg1 {[%clk 0:00:06.7]} 37. Rf1 {[%clk 0:00:11]}
37... Ng3+ {[%clk 0:00:04.4]} 38. Kxd1 {[%clk 0:00:11.1]} 38... Nxf1 {[%clk
0:00:04]} 39. Re1 {[%clk 0:00:11.4]} 1-0

[Event "*** SCC Grand Prix: Titled Tuesday Blitz"]
[Site "Chess.com"]
[Date "2020.09.08"]
[Round "3"]
[White "chessplayer9919"]
[Black "jeetjain"]
[Result "1/2-1/2"]
[WhiteElo "2598"]
[BlackElo "2405"]
[TimeControl "180+1"]
[EndTime "10:29:42 PDT"]
[Termination "Game drawn by repetition"]

1. e4 {[%clk 0:03:00.9]} 1... e5 {[%clk 0:02:59.4]} 2. Nf3 {[%clk 0:02:58.7]}
2... Nc6 {[%clk 0:02:59.5]} 3. d4 {[%clk 0:02:58.5]} 3... exd4 {[%clk
0:02:59.5]} 4. Nxd4 {[%clk 0:02:59.4]} 4... Bc5 {[%clk 0:02:58.1]} 5. Nb3 {[%clk
0:02:54.6]} 5... Bb6 {[%clk 0:02:57.5]} 6. Nc3 {[%clk 0:02:52.9]} 6... Nf6
{[%clk 0:02:57.8]} 7. Qe2 {[%clk 0:02:50.7]} 7... a5 {[%clk 0:02:53.2]} 8. Nd5
{[%clk 0:02:26.4]} 8... Nxd5 {[%clk 0:02:09.4]} 9. exd5+ {[%clk 0:02:26.2]} 9...
Ne7 {[%clk 0:02:09.7]} 10. Bg5 {[%clk 0:02:08.4]} 10... f6 {[%clk 0:02:07.8]}
11. Be3 {[%clk 0:02:00.2]} 11... Bxe3 {[%clk 0:02:05]} 12. Qxe3 {[%clk
0:02:01.1]} 12... O-O {[%clk 0:02:03.5]} 13. O-O-O {[%clk 0:01:59.2]} 13... d6
{[%clk 0:01:55.2]} 14. Nd4 {[%clk 0:01:46.5]} 14... Kh8 {[%clk 0:01:52.3]} 15.
Bc4 {[%clk 0:01:41.9]} 15... Nf5 {[%clk 0:01:44.3]} 16. Nxf5 {[%clk 0:01:30.6]}
16... Bxf5 {[%clk 0:01:45.2]} 17. Qf4 {[%clk 0:01:29.7]} 17... Qd7 {[%clk
0:01:39.9]} 18. Rhe1 {[%clk 0:01:21.2]} 18... a4 {[%clk 0:01:35.4]} 19. Bd3
{[%clk 0:01:15.9]} 19... Bxd3 {[%clk 0:01:31.9]} 20. Rxd3 {[%clk 0:01:16.8]}
20... a3 {[%clk 0:01:28]} 21. b3 {[%clk 0:01:13.1]} 21... Rfe8 {[%clk
0:01:22.2]} 22. Rde3 {[%clk 0:01:11.9]} 22... Rxe3 {[%clk 0:01:21.2]} 23. Qxe3
{[%clk 0:01:12.8]} 23... h6 {[%clk 0:01:09.1]} 24. Qe7 {[%clk 0:00:47.1]} 24...
Qg4 {[%clk 0:01:08.8]} 25. Qe4 {[%clk 0:00:35.9]} 25... Qh5 {[%clk 0:00:53.5]}
26. h4 {[%clk 0:00:28.7]} 26... Rc8 {[%clk 0:00:20.3]} 27. Qe6 {[%clk
0:00:18.2]} 27... Ra8 {[%clk 0:00:19.7]} 28. g3 {[%clk 0:00:18]} 28... Qf3
{[%clk 0:00:19.1]} 29. Re2 {[%clk 0:00:15]} 29... Qc3 {[%clk 0:00:19]} 30. Qf7
{[%clk 0:00:10.8]} 30... Qa1+ {[%clk 0:00:17.1]} 31. Kd2 {[%clk 0:00:10.9]}
31... Qd4+ {[%clk 0:00:18]} 32. Kc1 {[%clk 0:00:10.7]} 32... Qb2+ {[%clk
0:00:15.6]} 33. Kd2 {[%clk 0:00:09.8]} 33... Qd4+ {[%clk 0:00:13.1]} 34. Ke1
{[%clk 0:00:05.4]} 34... Qa1+ {[%clk 0:00:11.6]} 35. Kd2 {[%clk 0:00:05.7]}
35... Qd4+ {[%clk 0:00:03.6]} 1/2-1/2

[Event "*** SCC Grand Prix: Titled Tuesday Blitz"]
[Site "Chess.com"]
[Date "2020.09.08"]
[Round "3"]
[White "ChessFunMaker"]
[Black "SharapovEvgeny"]
[Result "0-1"]
[WhiteElo "2242"]
[BlackElo "2480"]
[TimeControl "180+1"]
[EndTime "10:29:42 PDT"]
[Termination "SharapovEvgeny won on time"]

1. c4 {[%clk 0:03:00.4]} 1... c5 {[%clk 0:02:59.3]} 2. g3 {[%clk 0:03:00.8]}
2... Nc6 {[%clk 0:02:59.3]} 3. Bg2 {[%clk 0:03:01.3]} 3... g6 {[%clk 0:02:59.5]}
4. Nc3 {[%clk 0:03:01.8]} 4... Bg7 {[%clk 0:02:59.5]} 5. Nf3 {[%clk 0:03:02.7]}
5... e5 {[%clk 0:02:59.1]} 6. O-O {[%clk 0:02:57.9]} 6... d6 {[%clk 0:02:58.9]}
7. a3 {[%clk 0:02:57.6]} 7... a5 {[%clk 0:02:58.1]} 8. Ne1 {[%clk 0:02:56]} 8...
Be6 {[%clk 0:02:57.3]} 9. d3 {[%clk 0:02:52.5]} 9... Nge7 {[%clk 0:02:56.7]} 10.
Nc2 {[%clk 0:02:51.9]} 10... d5 {[%clk 0:02:56.5]} 11. cxd5 {[%clk 0:02:45.9]}
11... Nxd5 {[%clk 0:02:56]} 12. Ne4 {[%clk 0:02:37.2]} 12... b6 {[%clk
0:02:52.9]} 13. Ng5 {[%clk 0:02:35.8]} 13... Bc8 {[%clk 0:02:49.1]} 14. Ne3
{[%clk 0:02:30.2]} 14... Nde7 {[%clk 0:02:48.2]} 15. Nc4 {[%clk 0:01:50]} 15...
O-O {[%clk 0:02:45.9]} 16. Rb1 {[%clk 0:01:45.1]} 16... Rb8 {[%clk 0:02:42.9]}
17. f4 {[%clk 0:01:40.6]} 17... b5 {[%clk 0:02:22.8]} 18. Nxe5 {[%clk 0:01:33]}
18... Nxe5 {[%clk 0:02:22.7]} 19. fxe5 {[%clk 0:01:33.9]} 19... Bxe5 {[%clk
0:02:22.5]} 20. Qb3 {[%clk 0:00:59.7]} 20... c4 {[%clk 0:01:47.3]} 21. dxc4
{[%clk 0:00:54.9]} 21... h6 {[%clk 0:01:45.9]} 22. Nxf7 {[%clk 0:00:38.8]} 22...
Rxf7 {[%clk 0:01:29.9]} 23. cxb5 {[%clk 0:00:39]} 23... Qb6+ {[%clk 0:01:20.3]}
24. Be3 {[%clk 0:00:16.3]} 24... Qe6 {[%clk 0:01:19.1]} 25. Qd3 {[%clk
0:00:16.6]} 25... Bb7 {[%clk 0:01:04.5]} 26. Rxf7 {[%clk 0:00:04.6]} 26... Qxf7
{[%clk 0:01:03.7]} 27. Rf1 {[%clk 0:00:03.5]} 27... Qe8 {[%clk 0:00:40.9]} 28.
Bxh6 {[%clk 0:00:03.9]} 28... Bxg2 {[%clk 0:00:34.4]} 29. Rf8+ {[%clk
0:00:04.3]} 29... Qxf8 {[%clk 0:00:33.8]} 30. Bxf8 {[%clk 0:00:05.2]} 30... Rxf8
{[%clk 0:00:30.4]} 31. Kxg2 {[%clk 0:00:05.6]} 31... Bxb2 {[%clk 0:00:24.3]} 32.
Qd7 {[%clk 0:00:03.8]} 32... Rf7 {[%clk 0:00:19.6]} 33. b6 {[%clk 0:00:04]}
33... Nf5 {[%clk 0:00:18.4]} 34. Qe8+ {[%clk 0:00:03.7]} 34... Kg7 {[%clk
0:00:17.5]} 35. e4 {[%clk 0:00:03.7]} 35... Ne3+ {[%clk 0:00:16.6]} 36. Kh3
{[%clk 0:00:04.3]} 36... Bd4 {[%clk 0:00:12.8]} 37. Qd8 {[%clk 0:00:03.3]} 37...
Be5 {[%clk 0:00:10.6]} 38. Qc8 {[%clk 0:00:02.8]} 38... Nc2 {[%clk 0:00:07.4]}
0-1

[Event "*** SCC Grand Prix: Titled Tuesday Blitz"]
[Site "Chess.com"]
[Date "2020.09.08"]
[Round "3"]
[White "NiranjanNavalgund"]
[Black "esrosenberg"]
[Result "0-1"]
[WhiteElo "2432"]
[BlackElo "2250"]
[TimeControl "180+1"]
[EndTime "10:29:43 PDT"]
[Termination "esrosenberg won by checkmate"]

1. e4 {[%clk 0:02:54.8]} 1... e5 {[%clk 0:02:59.9]} 2. Nf3 {[%clk 0:02:50.1]}
2... Nc6 {[%clk 0:03:00.1]} 3. Nc3 {[%clk 0:02:49.7]} 3... Nf6 {[%clk
0:02:59.9]} 4. Nxe5 {[%clk 0:02:48.8]} 4... Nxe5 {[%clk 0:02:58.6]} 5. d4 {[%clk
0:02:48.3]} 5... Nc6 {[%clk 0:02:55.6]} 6. e5 {[%clk 0:02:44.7]} 6... Ng8 {[%clk
0:02:52.3]} 7. f4 {[%clk 0:02:43.7]} 7... Bb4 {[%clk 0:02:48.6]} 8. d5 {[%clk
0:02:40]} 8... Nce7 {[%clk 0:02:39.6]} 9. Bc4 {[%clk 0:02:38.8]} 9... d6 {[%clk
0:02:37.2]} 10. O-O {[%clk 0:02:36.1]} 10... Ng6 {[%clk 0:02:33.5]} 11. e6
{[%clk 0:02:30.4]} 11... fxe6 {[%clk 0:02:24]} 12. dxe6 {[%clk 0:02:31.3]} 12...
Bxc3 {[%clk 0:02:21.8]} 13. bxc3 {[%clk 0:02:30.2]} 13... Qe7 {[%clk 0:02:22.3]}
14. f5 {[%clk 0:02:30]} 14... Ne5 {[%clk 0:02:22.7]} 15. Qh5+ {[%clk 0:02:28.3]}
15... Kd8 {[%clk 0:02:08.7]} 16. Bb3 {[%clk 0:02:28.4]} 16... Nf6 {[%clk
0:02:08.7]} 17. Qh4 {[%clk 0:02:26.5]} 17... b6 {[%clk 0:01:53.3]} 18. Bg5
{[%clk 0:02:25.7]} 18... Bb7 {[%clk 0:01:53.2]} 19. Rfe1 {[%clk 0:02:23.2]}
19... Kc8 {[%clk 0:01:35.6]} 20. Rad1 {[%clk 0:02:23]} 20... Kb8 {[%clk
0:01:34.8]} 21. Kh1 {[%clk 0:02:22.8]} 21... a6 {[%clk 0:01:35.1]} 22. Rxe5
{[%clk 0:02:22.1]} 22... dxe5 {[%clk 0:01:35.5]} 23. Rd7 {[%clk 0:02:21.7]}
23... Qc5 {[%clk 0:01:28.7]} 24. Bxf6 {[%clk 0:02:17.8]} 24... gxf6 {[%clk
0:01:29]} 25. Qxf6 {[%clk 0:02:17.3]} 25... Ka7 {[%clk 0:01:29.7]} 26. h3 {[%clk
0:02:15.3]} 26... Rhf8 {[%clk 0:01:11]} 27. Qg5 {[%clk 0:02:11.1]} 27... Qf2
{[%clk 0:00:54.6]} 28. Rg7 {[%clk 0:02:08.9]} 28... Rxf5 {[%clk 0:00:53.1]} 29.
Qg3 {[%clk 0:02:04.1]} 29... Qf1+ {[%clk 0:00:45.6]} 30. Kh2 {[%clk 0:02:03.5]}
30... Bxg2 {[%clk 0:00:40.1]} 31. Qxg2 {[%clk 0:01:57.5]} 31... Rf2 {[%clk
0:00:40]} 32. Rxc7+ {[%clk 0:01:56.3]} 32... Kb8 {[%clk 0:00:40.7]} 33. Rb7+
{[%clk 0:01:53.3]} 33... Kc8 {[%clk 0:00:40.9]} 34. Rg7 {[%clk 0:01:52.9]} 34...
Rxg2+ {[%clk 0:00:40.9]} 35. Rxg2 {[%clk 0:01:52.9]} 35... Qf4+ {[%clk
0:00:40.8]} 36. Kg1 {[%clk 0:01:52.7]} 36... Kc7 {[%clk 0:00:35.7]} 37. Rg7+
{[%clk 0:01:51.3]} 37... Kd6 {[%clk 0:00:35.8]} 38. Rd7+ {[%clk 0:01:51.1]}
38... Kc6 {[%clk 0:00:35.2]} 39. Rg7 {[%clk 0:01:50.8]} 39... Re8 {[%clk
0:00:24]} 40. Kg2 {[%clk 0:01:38.1]} 40... b5 {[%clk 0:00:15.3]} 41. Rg3 {[%clk
0:00:41.8]} 41... e4 {[%clk 0:00:15.1]} 42. h4 {[%clk 0:00:40]} 42... e3 {[%clk
0:00:14.7]} 43. Rf3 {[%clk 0:00:39.3]} 43... Qg4+ {[%clk 0:00:14.6]} 44. Rg3
{[%clk 0:00:39.5]} 44... Qe2+ {[%clk 0:00:14.8]} 45. Kh3 {[%clk 0:00:39.2]}
45... Qf2 {[%clk 0:00:11.9]} 46. Rg5 {[%clk 0:00:37.1]} 46... e2 {[%clk
0:00:10]} 47. Bd5+ {[%clk 0:00:37]} 47... Kd6 {[%clk 0:00:10.3]} 48. Be4 {[%clk
0:00:35.8]} 48... e1=Q {[%clk 0:00:09.9]} 49. Rg2 {[%clk 0:00:34.4]} 49... Qxh4#
{[%clk 0:00:09.7]} 0-1

[Event "*** SCC Grand Prix: Titled Tuesday Blitz"]
[Site "Chess.com"]
[Date "2020.09.08"]
[Round "3"]
[White "GOGIEFF"]
[Black "Shubinkirill2003"]
[Result "1-0"]
[WhiteElo "2893"]
[BlackElo "2639"]
[TimeControl "180+1"]
[EndTime "10:29:44 PDT"]
[Termination "GOGIEFF won on time"]

1. d4 {[%clk 0:03:00.9]} 1... e6 {[%clk 0:02:59.4]} 2. c4 {[%clk 0:03:01.2]}
2... Nf6 {[%clk 0:02:59.4]} 3. Nc3 {[%clk 0:03:01.4]} 3... Bb4 {[%clk
0:02:58.9]} 4. e3 {[%clk 0:03:01.9]} 4... O-O {[%clk 0:02:58.5]} 5. Bd3 {[%clk
0:03:02]} 5... d5 {[%clk 0:02:58]} 6. Nf3 {[%clk 0:03:02.5]} 6... dxc4 {[%clk
0:02:58.1]} 7. Bxc4 {[%clk 0:03:02.4]} 7... Nc6 {[%clk 0:02:58.8]} 8. O-O {[%clk
0:03:01.6]} 8... Bd6 {[%clk 0:02:58.6]} 9. Qc2 {[%clk 0:02:56.8]} 9... a6 {[%clk
0:02:55.9]} 10. a3 {[%clk 0:02:51]} 10... e5 {[%clk 0:02:55.2]} 11. h3 {[%clk
0:02:48]} 11... exd4 {[%clk 0:02:42.1]} 12. exd4 {[%clk 0:02:47.9]} 12... b5
{[%clk 0:02:39.9]} 13. Bd3 {[%clk 0:02:43.2]} 13... Bb7 {[%clk 0:02:36.6]} 14.
Ne4 {[%clk 0:02:42.6]} 14... h6 {[%clk 0:02:20.1]} 15. Re1 {[%clk 0:02:36.1]}
15... Nxe4 {[%clk 0:02:09]} 16. Bxe4 {[%clk 0:02:35.8]} 16... Qf6 {[%clk
0:02:08.4]} 17. Be3 {[%clk 0:02:20.7]} 17... Rfe8 {[%clk 0:01:50.6]} 18. Rac1
{[%clk 0:02:20.6]} 18... Nb4 {[%clk 0:01:46.6]} 19. Bh7+ {[%clk 0:02:20.2]}
19... Kh8 {[%clk 0:01:45.6]} 20. axb4 {[%clk 0:02:19.5]} 20... Bxf3 {[%clk
0:01:44.1]} 21. gxf3 {[%clk 0:02:19.8]} 21... g6 {[%clk 0:01:44.2]} 22. Bxg6
{[%clk 0:02:07.8]} 22... Rg8 {[%clk 0:01:36.2]} 23. Kf1 {[%clk 0:02:05.3]} 23...
Rxg6 {[%clk 0:01:34.4]} 24. Qe4 {[%clk 0:02:02.1]} 24... Rag8 {[%clk 0:01:32.4]}
25. Red1 {[%clk 0:01:46.4]} 25... Qd8 {[%clk 0:00:53.9]} 26. Rc6 {[%clk
0:01:39.6]} 26... Qd7 {[%clk 0:00:49.3]} 27. d5 {[%clk 0:01:30.2]} 27... Qxh3+
{[%clk 0:00:46.1]} 28. Ke2 {[%clk 0:01:29.6]} 28... f5 {[%clk 0:00:39.3]} 29.
Qd4+ {[%clk 0:01:16.8]} 29... Kh7 {[%clk 0:00:38.6]} 30. Rdc1 {[%clk 0:01:05.4]}
30... R8g7 {[%clk 0:00:38.5]} 31. f4 {[%clk 0:00:49]} 31... Re7 {[%clk
0:00:31.4]} 32. Kd2 {[%clk 0:00:47.9]} 32... Qf3 {[%clk 0:00:30.7]} 33. Kc2
{[%clk 0:00:37.1]} 33... Re4 {[%clk 0:00:27.3]} 34. Qc3 {[%clk 0:00:27.9]} 34...
Rg7 {[%clk 0:00:15]} 35. Kb1 {[%clk 0:00:25.9]} 35... Rf7 {[%clk 0:00:09.3]} 36.
Rxa6 {[%clk 0:00:25.1]} 36... Bxb4 {[%clk 0:00:07.5]} 37. Qc6 {[%clk 0:00:22.6]}
37... Bd6 {[%clk 0:00:07.6]} 38. Ra8 {[%clk 0:00:21.9]} 38... Ree7 {[%clk
0:00:06.3]} 39. Qxb5 {[%clk 0:00:20.2]} 39... Qe4+ {[%clk 0:00:06.1]} 40. Ka1
{[%clk 0:00:20.7]} 40... Rg7 {[%clk 0:00:05.2]} 41. Qb8 {[%clk 0:00:20.5]} 41...
Qxd5 {[%clk 0:00:03.4]} 42. Qh8+ {[%clk 0:00:19.4]} 42... Kg6 {[%clk 0:00:03.6]}
43. Rg1+ {[%clk 0:00:19.9]} 43... Kf6 {[%clk 0:00:03.8]} 44. Qxh6+ {[%clk
0:00:18.1]} 1-0

[Event "*** SCC Grand Prix: Titled Tuesday Blitz"]
[Site "Chess.com"]
[Date "2020.09.08"]
[Round "3"]
[White "ENajer77"]
[Black "Sanan_Sjugirov"]
[Result "0-1"]
[WhiteElo "2605"]
[BlackElo "2838"]
[TimeControl "180+1"]
[EndTime "10:29:48 PDT"]
[Termination "Sanan_Sjugirov won by checkmate"]

1. e4 {[%clk 0:03:00.9]} 1... c5 {[%clk 0:02:59.3]} 2. Nf3 {[%clk 0:03:01]} 2...
Nc6 {[%clk 0:02:59.4]} 3. Bb5 {[%clk 0:02:59.4]} 3... d6 {[%clk 0:02:58.2]} 4.
c3 {[%clk 0:02:56.9]} 4... Nf6 {[%clk 0:02:42.7]} 5. Qe2 {[%clk 0:02:57.1]} 5...
Bd7 {[%clk 0:02:35]} 6. d4 {[%clk 0:02:56.9]} 6... cxd4 {[%clk 0:02:30.1]} 7.
cxd4 {[%clk 0:02:57]} 7... d5 {[%clk 0:02:29.4]} 8. e5 {[%clk 0:02:50.3]} 8...
Ne4 {[%clk 0:02:29.1]} 9. O-O {[%clk 0:02:45]} 9... a6 {[%clk 0:02:15.8]} 10.
Bxc6 {[%clk 0:02:39.2]} 10... Bxc6 {[%clk 0:02:16.7]} 11. e6 {[%clk 0:02:39.7]}
11... fxe6 {[%clk 0:02:04.7]} 12. Ne5 {[%clk 0:02:39.4]} 12... g6 {[%clk
0:02:00.6]} 13. Nc3 {[%clk 0:02:20]} 13... Bg7 {[%clk 0:01:53.2]} 14. Nxc6
{[%clk 0:02:04.7]} 14... bxc6 {[%clk 0:01:53]} 15. Nxe4 {[%clk 0:02:05.3]} 15...
dxe4 {[%clk 0:01:53.2]} 16. Qxe4 {[%clk 0:02:05.9]} 16... Qd5 {[%clk 0:01:53.3]}
17. Re1 {[%clk 0:02:05.6]} 17... Bxd4 {[%clk 0:01:39.6]} 18. Qxe6 {[%clk
0:02:00.6]} 18... Qxe6 {[%clk 0:01:15]} 19. Rxe6 {[%clk 0:02:00.5]} 19... Kd7
{[%clk 0:01:14.9]} 20. Re2 {[%clk 0:01:59.8]} 20... e5 {[%clk 0:01:12.5]} 21. g3
{[%clk 0:01:47]} 21... Kd6 {[%clk 0:01:10.2]} 22. Kg2 {[%clk 0:01:47.1]} 22...
Kd5 {[%clk 0:01:07.9]} 23. Bg5 {[%clk 0:01:41]} 23... Rab8 {[%clk 0:01:03.8]}
24. Rd1 {[%clk 0:01:40.6]} 24... c5 {[%clk 0:00:55.7]} 25. f4 {[%clk 0:01:37.5]}
25... e4 {[%clk 0:00:34.5]} 26. Bf6 {[%clk 0:01:37.6]} 26... Rhe8 {[%clk
0:00:30.5]} 27. b3 {[%clk 0:01:24.7]} 27... Rb4 {[%clk 0:00:23.3]} 28. g4 {[%clk
0:00:54.6]} 28... a5 {[%clk 0:00:23.2]} 29. Be5 {[%clk 0:00:36.5]} 29... a4
{[%clk 0:00:23.1]} 30. bxa4 {[%clk 0:00:23.3]} 30... Rxa4 {[%clk 0:00:24]} 31.
Rb2 {[%clk 0:00:23.3]} 31... Rea8 {[%clk 0:00:18.1]} 32. Rdd2 {[%clk 0:00:12.8]}
32... e3 {[%clk 0:00:18]} 33. Rd1 {[%clk 0:00:06.9]} 33... Ke4 {[%clk
0:00:15.6]} 34. Rb7 {[%clk 0:00:04.7]} 34... Rxa2+ {[%clk 0:00:15.3]} 35. Kh3
{[%clk 0:00:05.1]} 35... e2 {[%clk 0:00:15.3]} 36. Re1 {[%clk 0:00:04.3]} 36...
Bf2 {[%clk 0:00:14.1]} 37. Rbb1 {[%clk 0:00:02.8]} 37... Bxe1 {[%clk 0:00:13.9]}
38. Rxe1 {[%clk 0:00:03.4]} 38... Kf3 {[%clk 0:00:14.4]} 39. f5 {[%clk
0:00:03.8]} 39... gxf5 {[%clk 0:00:14.4]} 40. gxf5 {[%clk 0:00:04.4]} 40... c4
{[%clk 0:00:11.1]} 41. f6 {[%clk 0:00:04.5]} 41... R2a5 {[%clk 0:00:11.4]} 42.
Bc3 {[%clk 0:00:02.9]} 42... Rh5# {[%clk 0:00:11.2]} 0-1